Cogmind - Beta 16 @@@ ROGUE MODE // 2025.11.05 @ 18:06:55 Player: shapeshifter Result: Self-destructed Performance ------------- Evolutions (2) 1000 Regions Visited (6) 1200 Robots Destroyed (21) 105 Value Destroyed (1026) 1026 Prototype IDs (23) 460 Alien Tech Used (0) 0 Bonus (640) 640 TOTAL SCORE: 4431 Bonus ------- Follower Combat Kills 140 Entered Garrisons 200 Aligned with FarCom 300 Cogmind --------- Core Integrity 303/550 Matter 300/300 Energy 96/100 System Corruption 10% Temperature Cool (18) Movement Walking (120) Location -8/Garrison Parts ------- > --- POWER (1) -------- (None) > --- PROPULSION (3) --- Carbon-fiber Leg > --- UTILITY (5) ------ Improved Heat Sink Small Storage Unit 0b10 Alert Chip > --- WEAPON (2) ------- Particle Gun > --- INVENTORY (8) ---- Flying Fortress v7 XL Autogun Array Peak State ------------ > --- POWER ------------ Light Nuclear Core > --- PROPULSION ------- Aluminum Leg Aluminum Leg Aluminum Leg > --- UTILITY ---------- Improved Heat Sink Small Storage Unit 0b10 Alert Chip Kinecellerator > --- WEAPON ----------- Particle Gun Gauss Rifle > --- INVENTORY -------- Flying Fortress v7 XL Autogun Array [Rating: 32] Favorites ----------- Power Light Nuclear Core Power Core Light Nuclear Core Propulsion Flight Unit Leg Aluminum Leg Flight Unit Flight Unit Utility Small Storage Unit Device Improved Heat Sink Storage Small Storage Unit Processor 0b10 Alert Chip Weapon Light Assault Rifle Energy Gun Particle Gun Ballistic Gun Light Assault Rifle Build | -11 -10 -10 -10 -9 -8 -8 ------- Run | Yrd Mat Min Exi Min Mat Gar Slots Evolved 4 | . . . . . 4 . Power . | . . . . . . . Propulsion 1 | . . . . . 1 . Utility 3 | . . . . . 3 . Weapon . | . . . . . . . Parts Attached 23 | 2 . 7 2 . . 12 Power 2 | . . . . . . 2 Engine . | . . . . . . . Core 2 | . . . . . . 2 Reactor . | . . . . . . . Propulsion 8 | . . 4 . . . 4 Treads . | . . . . . . . Leg 4 | . . . . . . 4 Wheel . | . . . . . . . Hover . | . . . . . . . Flight 4 | . . 4 . . . . Utility 5 | . . 1 2 . . 2 Device 3 | . . 1 . . . 2 Storage 1 | . . . 1 . . . Processor 1 | . . . 1 . . . Hackware . | . . . . . . . Protection . | . . . . . . . Artifact . | . . . . . . . Weapon 8 | 2 . 2 . . . 4 Energy Gun 4 | 1 . . . . . 3 Energy Cannon . | . . . . . . . Ballistic Gun 4 | 1 . 2 . . . 1 Ballistic Cannon . | . . . . . . . Launcher . | . . . . . . . Special Weapon . | . . . . . . . Impact Weapon . | . . . . . . . Slashing Weapon . | . . . . . . . Piercing Weapon . | . . . . . . . Special Melee Weapon . | . . . . . . . Unidentified Prototypes . | . . . . . . . Parts Lost 14 | . . 3 . . . 11 Power 2 | . . . . . . 2 Propulsion 6 | . . 2 . . . 4 Utility 1 | . . . . . . 1 Weapon 5 | . . 1 . . . 4 Highest Loss Streak 5 | . . 3 . . . 5 To Critical Strikes 1 | . . . . . . 1 Average Backups 2 | 2 4 4 3 2 2 2 Power . | . 1 1 . . . . Propulsion . | . . . 1 1 1 1 Utility . | 1 2 2 1 . . . Weapon . | . 1 1 . 1 1 1 Tool/Special . | . . . . . . . Unused Backups 7 | . . 1 4 . . 2 Power 1 | . . . 1 . . . Propulsion 2 | . . . 1 . . 1 Utility 1 | . . . 1 . . . Weapon 3 | . . 1 1 . . 1 Tool/Special . | . . . . . . . Average Slot Usage (%) 68 | . 28 54 79 85 54 70 Core 2 | . . . . . . 5 Leg 9 | . . . . . . 18 Flight 13 | . . 17 28 28 18 4 Device 7 | . . 8 6 . . 10 Storage 7 | . . . 8 14 9 9 Processor 7 | . . . 7 14 9 9 Energy Gun 7 | . 14 7 . . . 9 Ballistic Gun 13 | . 14 20 28 28 18 4 Peak Build Rating 32 | 2 2 5 17 17 17 32 Average Rating 15 | 1 2 3 11 17 17 24 On Entrance 8 | . 2 2 5 17 17 17 Avg Prop Armor Cover (%) . | . . . . . . . Naked Turns . | . . . . . . . Heaviest Build 21 | 3 3 4 8 7 7 21 Greatest Support 35 | 3 3 8 8 8 8 35 Greatest Overweight (x) 2 | . . . . . . 2 Average Overweight (x) . | . . . . . . . Largest Inventory Capacity 8 | 5 5 5 8 8 8 8 Average Capacity 6 | 5 5 5 6 8 8 8 Most Carried 8 | 4 4 5 8 8 8 8 Average Carried 6 | 2 4 4 6 8 8 8 Final Capacity 8 | 5 5 5 8 8 8 8 Final Carried 8 | 4 4 5 8 8 8 8 Class Distribution -------------------- 77% | Scavenger-Mutant 22% | Mutant Dominant Class ---------------- Mutant | -10/Materials Mutant | -10/Mines Scavenger-Mutant | -10/Exiles Scavenger-Mutant | -9/Mines Scavenger-Mutant | -8/Materials Scavenger-Mutant | -8/Garrison Resources | -11 -10 -10 -10 -9 -8 -8 ----------- Run | Yrd Mat Min Exi Min Mat Gar Matter Collected 559 | 259 . 129 . 20 . 151 Remotely . | . . . . . . . Salvage Created 592 | 78 . 153 . . . 361 Parts 34 | 8 . 17 . . . 9 Haulers Intercepted . | . . . . . . . Recyclers Shooed . | . . . . . . . Parts Field Recycled . | . . . . . . . Retrieved Matter . | . . . . . . . Parts Self-Destructed . | . . . . . . . Prevented . | . . . . . . . Parts Restored . | . . . . . . . Kills | -11 -10 -10 -10 -9 -8 -8 ------- Run | Yrd Mat Min Exi Min Mat Gar Combat Hostiles Destroyed 15 | . . 9 . . . 6 Guns 14 | . . 9 . . . 5 Classes Destroyed 5 | 1 . 1 . . . 3 Tunneler 5 | 4 . 1 . . . . Swarmer 9 | . . 9 . . . . Grunt 4 | . . . . . . 4 Brawler 2 | . . . . . . 2 Hunter 1 | . . . . . . 1 Best Kill Streak 4 | 3 . 4 . . . 2 Combat Bots Only 3 | . . 3 . . . 2 Max Kills in Single Turn 1 | 1 . 1 . . . 1 Gunslinging . | . . . . . . . Exploded . | . . . . . . . Melee . | . . . . . . . Uniques/NPCs Destroyed . | . . . . . . . Combat | -11 -10 -10 -10 -9 -8 -8 -------- Run | Yrd Mat Min Exi Min Mat Gar Hostile Shots Fired 140 | . . 53 . . . 87 Missed 40 | . . 17 . . . 23 Hits 100 | . . 36 . . . 64 Melee 2 | . . . . . . 2 Projectile 98 | . . 36 . . . 62 Critical Strikes 4 | . . . . . . 4 Damage Taken 1354 | . . 301 . . . 1053 Core 371 | . . 124 . . . 247 Absorbed by Shields . | . . . . . . . Core Remaining (%) 75 | 100 . . . 50 . . Volleys Fired 99 | 13 5 21 . 2 . 58 Largest 2 | 2 2 2 . 2 . 2 Hottest 130 | 60 60 60 . 40 . 130 Shots Fired 161 | 26 10 41 . 4 . 80 Gun 161 | 26 10 41 . 4 . 80 Cannon . | . . . . . . . Launcher . | . . . . . . . Special . | . . . . . . . Kinetic 86 | 13 5 29 . 4 . 35 Thermal 75 | 13 5 12 . . . 45 Explosive . | . . . . . . . Electromagnetic . | . . . . . . . Robot Hit Streak 8 | 4 . 5 . 7 . 8 Robot Miss Streak 3 | 3 . 2 . 1 . 3 Penetration Max . | . . . . . . . Secondary Targets 4 | . . 3 . . . 1 Max Gunslinging Chain 1 | . . 1 . . . 1 Shots Hit Robots 77 | 15 . 24 . 3 . 35 Core Hits 36 | 4 . 13 . 2 . 17 Critical Kills . | . . . . . . . Critical Parts Destroyed . | . . . . . . . Critical Strikes 3 | . . . . . . 3 Burn 3 | . . . . . . 3 Melee Attacks . | . . . . . . . Impact . | . . . . . . . Slashing . | . . . . . . . Piercing . | . . . . . . . Sneak Attacks . | . . . . . . . Combat Hostiles . | . . . . . . . Follow-up Attacks . | . . . . . . . Damage Inflicted 912 | 179 . 262 . 25 . 446 Guns 912 | 179 . 262 . 25 . 446 Cannons . | . . . . . . . Explosions . | . . . . . . . Melee . | . . . . . . . Ramming . | . . . . . . . Kinetic 468 | 100 . 192 . 25 . 151 Thermal 444 | 79 . 70 . . . 295 Explosive . | . . . . . . . Electromagnetic . | . . . . . . . Impact . | . . . . . . . Slashing . | . . . . . . . Piercing . | . . . . . . . Highest Corruption 10 | . . . . . . 10 Average Corruption 9 | . . . . . . 9 Corruption Purged . | . . . . . . . Corruption Blocked . | . . . . . . . Effects 7 | . . . . . . 7 Message Errors 2 | . . . . . . 2 Matter Fused 1 | . . . . . . 1 Energy Discharges 1 | . . . . . . 1 Parts Fused 1 | . . . . . . 1 Data Loss (major) 1 | . . . . . . 1 Misdirections 1 | . . . . . . 1 Overload Shots . | . . . . . . . Overflow Damage . | . . . . . . . Projectiles . | . . . . . . . Explosions . | . . . . . . . Melee . | . . . . . . . Knockbacks . | . . . . . . . Impact . | . . . . . . . Kinetic . | . . . . . . . Secondary . | . . . . . . . Self-Inflicted Damage . | . . . . . . . Shots . | . . . . . . . Rammed . | . . . . . . . Targets Rammed . | . . . . . . . Kicked . | . . . . . . . Crushed . | . . . . . . . Highest Temperature 45 | 15 . 1 . . . 45 Average Temperature 15 | 10 . 1 . . . 16 Received Heat Transfer 459 | . . . . . . 459 Siege Activations . | . . . . . . . Martial Activations . | . . . . . . . Shielding Activations . | . . . . . . . Robots Disrupted . | . . . . . . . Combat Hostiles . | . . . . . . . Robots Corrupted . | . . . . . . . Combat Hostiles . | . . . . . . . Parts Fried . | . . . . . . . Impact Corruptions . | . . . . . . . Robots Melted 1 | . . . . . . 1 Combat Hostiles 1 | . . . . . . 1 Parts Melted 4 | . . . . . . 4 Heat Transferred 1250 | 175 . 150 . . . 925 Parts Sabotaged . | . . . . . . . Parts Stolen . | . . . . . . . Parts Stripped . | . . . . . . . Power Chain Reactions . | . . . . . . . Alert | -11 -10 -10 -10 -9 -8 -8 ------- Run | Yrd Mat Min Exi Min Mat Gar Maximum Alert Level 1 | . . . . . . 1 Low Security (%) 93 | 100 100 100 . 100 100 87 Level 1 6 | . . . . . . 12 Level 2 . | . . . . . . . Level 3 . | . . . . . . . Level 4 . | . . . . . . . Level 5 . | . . . . . . . High Security . | . . . . . . . Max Security . | . . . . . . . Peak Influence 214 | 5 59 166 . . . 214 Initial 22 | . . 22 . . . . Average 83 | . 9 78 . . . 121 Influence Increases 679 | 20 69 266 . . . 324 Destroy 0b10 Robot/C 340 | . . 180 . . . 160 Destroy 0b10 Robot/NC 25 | 20 . 5 . . . . Destroy Leader 38 | . . 30 . . . 8 Allied During Kill 43 | . . 31 . . . 12 Successful Hack 17 | . . 5 . . . 12 Disable Machine 45 | . 45 . . . . . Anti-Garrison Action 120 | . . . . . . 120 Destroy Structure 24 | . 24 . . . . . Lose Combat Pursuer 27 | . . 15 . . . 12 Influence Decreases 505 | 20 10 232 93 . . 150 Entered New Map 130 | . . 37 93 . . . Time Decay 195 | 20 10 165 . . . . Lost Part 140 | . . 30 . . . 110 Lost Ally 40 | . . . . . . 40 Squads Dispatched . | . . . . . . . Investigation . | . . . . . . . Extermination . | . . . . . . . Reinforcement . | . . . . . . . Assault . | . . . . . . . Garrison . | . . . . . . . Intercept . | . . . . . . . Searches Triggered . | . . . . . . . Construction Impeded . | . . . . . . . Haulers Reinforced . | . . . . . . . Active Scanning Responses . | . . . . . . . Cargo Convoy Interrupts . | . . . . . . . Stealth | -11 -10 -10 -10 -9 -8 -8 --------- Run | Yrd Mat Min Exi Min Mat Gar Distress Signals 1 | . 1 . . . . . Communications Jammed . | . . . . . . . Distress Signals . | . . . . . . . Times Spotted 26 | . 1 10 . . . 15 Peak Tracking Total 6 | . 3 3 . . . 6 Tactical Retreats 2 | . . 1 . . . 1 Traps | -11 -10 -10 -10 -9 -8 -8 ------- Run | Yrd Mat Min Exi Min Mat Gar Traps Triggered . | . . . . . . . Indirectly . | . . . . . . . Trap Hack Attempts . | . . . . . . . Triggered . | . . . . . . . Disarmed . | . . . . . . . Reprogrammed . | . . . . . . . Reused . | . . . . . . . Traps Extracted . | . . . . . . . Installed . | . . . . . . . Triggered . | . . . . . . . Machines | -11 -10 -10 -10 -9 -8 -8 ---------- Run | Yrd Mat Min Exi Min Mat Gar Machines Disabled 6 | . 3 . . . . 3 Max in Single Turn 3 | . 3 . . . . 1 Garrison Relay 3 | . . . . . . 3 Machines Repaired . | . . . . . . . Machines Dismantled . | . . . . . . . Machines Sabotaged . | . . . . . . . Overloaded Fab Kills . | . . . . . . . Hacking | -11 -10 -10 -10 -9 -8 -8 --------- Run | Yrd Mat Min Exi Min Mat Gar Machines Accessed 9 | . 2 2 2 1 1 1 Terminals 4 | . 2 1 . . . 1 Fabricators . | . . . . . . . Repair Stations . | . . . . . . . Recycling Units . | . . . . . . . Scanalyzers . | . . . . . . . Garrison Access 1 | . . . . . 1 . Total Hacks 10 | . 2 3 2 1 1 1 Successful 8 | . 1 2 2 1 1 1 Failed 2 | . 1 1 . . . . Catastrophic 1 | . 1 . . . . . Database Lockouts . | . . . . . . . Manual 1 | . . . 1 . . . Terminals 5 | . 2 2 . . . 1 Fabricators . | . . . . . . . Repair Stations . | . . . . . . . Recycling Units . | . . . . . . . Scanalyzers . | . . . . . . . Garrison Access 1 | . . . . . 1 . Terminal Hacks 7 | . 1 2 2 1 . 1 Record 1 | . . . 1 . . . Open Door 2 | . . 1 . 1 . . Emergency Access Points 1 | . . . . . . 1 Zone Layout 2 | . 1 1 . . . . Proto ID Catalog 1 | . . . 1 . . . Fabricator Hacks . | . . . . . . . Repair Station Hacks . | . . . . . . . Recycling Unit Hacks . | . . . . . . . Scanalyzer . | . . . . . . . Garrison Access Hacks 1 | . . . . . 1 . Unlock Access 1 | . . . . . 1 . Unauthorized Hacks . | . . . . . . . Terminals . | . . . . . . . Fabricators . | . . . . . . . Repair Stations . | . . . . . . . Recycling Units . | . . . . . . . Scanalyzers . | . . . . . . . Garrison Access . | . . . . . . . Data Cores Recovered . | . . . . . . . Used . | . . . . . . . Hacking Detections 4 | . 1 1 . . 1 1 Full Trace Events . | . . . . . . . Feedback Events . | . . . . . . . Feedback Blocked . | . . . . . . . Robot Schematics Acquired . | . . . . . . . Robots Built . | . . . . . . . Authchips . | . . . . . . . Time . | . . . . . . . Total Robot Build Rating . | . . . . . . . Part Schematics Acquired . | . . . . . . . Parts Built . | . . . . . . . Authchips . | . . . . . . . Time . | . . . . . . . Total Part Build Rating . | . . . . . . . Part Studies Acquired . | . . . . . . . Parts Repaired . | . . . . . . . Time . | . . . . . . . Parts Recycled . | . . . . . . . Recycled Matter . | . . . . . . . Retrieved Matter . | . . . . . . . Retrieved Components . | . . . . . . . Parts Scanalyzed . | . . . . . . . Part Schematics Acquired . | . . . . . . . Parts Damaged . | . . . . . . . Bothacking | -11 -10 -10 -10 -9 -8 -8 ------------ Run | Yrd Mat Min Exi Min Mat Gar Used RIF Installer . | . . . . . . . Robots Hacked . | . . . . . . . Non-combat . | . . . . . . . Combat . | . . . . . . . Robot Hacks Applied . | . . . . . . . Relay Couplers Released 11 | . . . . . . 11 Machine Destruction 11 | . . . . . . 11 Fabnet Peak Effective % . | . . . . . . . Robots Rewired . | . . . . . . . Allies Hacked . | . . . . . . . Hacks Repelled . | . . . . . . . Allies | -11 -10 -10 -10 -9 -8 -8 -------- Run | Yrd Mat Min Exi Min Mat Gar Total Allies 6 | . . 6 . . . . Largest Group 6 | . . 6 5 3 3 3 Highest-Rated Group 116 | . . 116 85 40 40 40 Highest-Rated Ally 31 | . . 31 31 16 16 16 Total Orders . | . . . . . . . Ally Attacks 52 | . . 3 . . . 49 Total Damage 557 | . . 22 . . . 535 Kills 4 | . . . . . . 4 Allies Corrupted . | . . . . . . . Allies Melted . | . . . . . . . Intel | -11 -10 -10 -10 -9 -8 -8 ------- Run | Yrd Mat Min Exi Min Mat Gar Active Infowar (turns) 368 | . . 270 98 . . . Seismic 368 | . . 270 98 . . . Robot Analysis Total . | . . . . . . . Derelict Logs Recovered 2 | . . 2 . . . . Drone Launches . | . . . . . . . Drone Recoveries . | . . . . . . . Exploration | -11 -10 -10 -10 -9 -8 -8 ------------- Run | Yrd Mat Min Exi Min Mat Gar Turns Passed 1936 | 122 48 419 207 214 9 917 Spaces Moved 2187 | 96 65 628 342 452 8 596 Core 376 | 96 65 207 . . . 8 Treads . | . . . . . . . Legs 468 | . . . . . . 468 Wheels . | . . . . . . . Hover . | . . . . . . . Flight 1343 | . . 421 342 452 8 120 Fastest Speed 37 | 50 50 37 37 37 37 37 Average Speed 59 | 50 50 41 37 37 37 111 Slowest Speed 200 | 50 50 50 37 37 37 200 Overloaded Moves . | . . . . . . . Propulsion Burnouts . | . . . . . . . Robots Hopped 5 | . . 3 . 2 . . Potential Cave-ins . | . . . . . . . Cave-ins Triggered . | . . . . . . . Exploration Rate (%) 47 | 3 27 93 68 83 2 59 Regions Visited 6 Branch Regions 3 Pre-discovered Areas 1 | . . . 1 . . . Known Exits Taken 1 | . . . . . 1 . Unknown Exits Taken 5 | 1 1 1 1 1 . . Scrap Searched 2 | . . 1 . 1 . . Spaces Dug . | . . . . . . . Terrain Destroyed 24 | . 24 . . . . . Melee . | . . . . . . . Projectile . | . . . . . . . AOE 24 | . 24 . . . . . Terrain Rammed . | . . . . . . . Walls Destroyed . | . . . . . . . Machines Disabled . | . . . . . . . Actions | -11 -10 -10 -10 -9 -8 -8 --------- Run | Yrd Mat Min Exi Min Mat Gar Total 2656 | 143 69 745 423 492 14 770 Wait 331 | 27 . 85 72 41 6 100 Move 2172 | 95 64 621 341 447 8 596 Hop 5 | . . 3 . 2 . . Pick Up 15 | 6 . 6 3 . . . Fast Attach 15 | . . 3 . . . 12 Attach 7 | 2 . 4 1 . . . Detach . | . . . . . . . Swap 2 | . . . 1 . . 1 Drop 10 | . . 2 5 . . 3 Fire 99 | 13 5 21 . 2 . 58 Melee . | . . . . . . . Ram . | . . . . . . . Kick . | . . . . . . . Crush . | . . . . . . . Escape Stasis . | . . . . . . . Rewire . | . . . . . . . Trap . | . . . . . . . Miscellaneous . | . . . . . . . Route ------- -11/Scrapyard -10/Materials -10/Mines (discovered 3 exits: [*Mat x2] / *Exi) -10/Exiles -9/Mines (discovered 2 exits: *Mat x2) -8/Materials (discovered 2 exits: Fac / Gar) -8/Garrison (discovered 3 exits: *Fac x3) History --------- Turn | Location | Event 7 | -11/Scrapyard | Discovered new exit (range 15) 123 | -11/Scrapyard | Entered Materials 144 | -10/Materials | Discovered new exit (range 12) 171 | -10/Materials | Entered Mines 183 | -10/Mines | Received a Mining Laser from a helpful Derelict 227 | -10/Mines | Met a Derelict who couldn't figure out how to use a Trap Extractor 308 | -10/Mines | Build established: Mutant 332 | -10/Mines | Assisted by bots powering up and referring to "LRC-V3" 400 | -10/Mines | Discovered new exit (range 9) 453 | -10/Mines | Discovered new exit (range 11) 455 | -10/Mines | Learned Materials terminal intel 457 | -10/Mines | Lost 3 parts (2n1w) 514 | -10/Mines | Learned 4 Materials zone layouts 528 | -10/Mines | Deemed a non-threat by the Exiles lab entrance 528 | -10/Mines | Discovered new exit (range 5) 590 | -10/Mines | Entered Exiles 590 | -10/Exiles | Accompanied by 5 allies 600 | -10/Exiles | Met 8R-AWN 606 | -10/Exiles | Met EX-HEX 620 | -10/Exiles | Led the pair of lost Derelicts to a safe place 622 | -10/Exiles | Met EX-DEC 628 | -10/Exiles | Learned location of Zion (-7) 652 | -10/Exiles | Met EX-BIN 665 | -10/Exiles | Aligned with FarCom system 665 | -10/Exiles | Given EX-Vault access code 673 | -10/Exiles | Opened EX-Vault 678 | -10/Exiles | Found Flying Fortress v7 680 | -10/Exiles | Found 0b10 Alert Chip 690 | -10/Exiles | Found XL Autogun Array 699 | -10/Exiles | Warned to stay clear of 0b10 Research branches 711 | -10/Exiles | Build established: Scavenger-Mutant 722 | -10/Exiles | Discovered new exit (range 10) 797 | -10/Exiles | Stole three prototypes: 0b10 Alert Chip, Flying Fortress v7, XL Autogun Array 797 | -10/Exiles | Entered Mines 797 | -9/Mines | Accompanied by 3 allies 800 | -9/Mines | Met a Derelict bent on vengeance 802 | -9/Mines | Found a hidden stash of uninstalled traps 807 | -9/Mines | A weapon hastily lodged in a ceiling crevice suddenly fell to the ground 833 | -9/Mines | Discovered new exit (range 15) 887 | -9/Mines | Discovered new exit (range 13) 912 | -9/Mines | Found the Drone Emporium 1011 | -9/Mines | Entered Materials 1011 | -8/Materials | Accompanied by 3 allies 1011 | -8/Materials | Evolved 4 slots: Propulsion x1, Utility x3 1012 | -8/Materials | Identified exit to Factory 1013 | -8/Materials | Loaded intel: 12 terminal locations 1020 | -8/Materials | Identified exit to Garrison 1020 | -8/Materials | Entered Garrison 1020 | -8/Garrison | Accompanied by 3 allies 1052 | -8/Garrison | Triggered checkpoint 1161 | -8/Garrison | Garrison Relay disabled 1265 | -8/Garrison | Lost 3 allies 1310 | -8/Garrison | Lost 5 parts (2n3w) 1371 | -8/Garrison | Discovered exit to Factory (range 10) 1496 | -8/Garrison | Triggered checkpoint 1546 | -8/Garrison | Triggered checkpoint 1562 | -8/Garrison | Garrison Relay disabled 1581 | -8/Garrison | Garrison Relay disabled 1619 | -8/Garrison | Discovered exit to Factory (range 11) 1683 | -8/Garrison | Triggered checkpoint 1737 | -8/Garrison | System corruption reached 10% 1797 | -8/Garrison | Triggered checkpoint 1899 | -8/Garrison | Discovered exit to Factory (range 15) 1902 | -8/Garrison | Triggered checkpoint 1937 | -8/Garrison | Self-destructed Last Messages --------------- 01812_ Carbon-fiber Leg melted. 01812_ Targeting Computer melted. 01814_ Acquired Broken Gauss Rifle. 01816_ Dropped Broken Gauss Rifle. 01817_ Dropped Aluminum Leg. 01819_ Acquired 20 matter. 01820_ SKZZHXTGMG8S2BTGIN% ZC7&P>>O9 01841_ EC 6DZ9KIM0%JV%UT Map ----- +----------------------------------------------------+ | ?????????????????????????????????+ | | ?????????????????????????????????+ | | ?????????????????????????????????# ## | | ?????????????????????????????????# ##[ ## ##? | | ??????????????##?????????????????# ##%= ## #?? | | ?????????????? ?????????????????# ######## #?? | | ??????????????# ?????????????????+ #??????# #?? | | ??????????????# ?????????????????# #??????# #?? | | ?????????????##+##???????????????# #??????# #?? | | ?????????????# #???????????????# #??????# #?? | | ????????###### ########++###+### #??????# ??? | | ?# ^ #??????# ???? | | ?# hY #??????# ???? | | ?# ^Y g #??????# ???? | | ?? < ####################gg#########+#??????? ???? | | ????????????????????????# #?????????????????????? | | ????????????????????????# #?????????????????????? | | ????????????????????????# #?????????????????????? | | ????????????????????????# #?????????????????????? | | ????????????????????????# #?????????????????????? | | ????????????????????????# #?????##???????????+??? | | ????????????????????????# #???"""#??????????????? | | ????????????????????????# ### ###?????????????? | | ????????????????????????# +????????+???+? | | ????????????????????????# #?????????????? | | ????????????????????????#@ ##"""""##?????????????? | | ????????????????????????# #?sssss???????????????? | | ????????????????????????# #??+??????????????????? | | ????????????????????????# #?????????????????????? | | ????????????????????????# +?????????????????????? | | ????????????????????????# ##?????????????????????? | | ????????????????????????# #??????????????????????? | | ????????????????????????! ??????????????????????? | | ????????????????????????! ??????????????????????? | | ????????????????????????#!!??????????????????????? | | ?????????????????????????##??????????????????????? | | ?????????????????????????????????????????????????? | | ?????????????????????????????????????????????????? | | ?????????????????????????????????????????????????? | | ?????????????????????????????????????????????????? | | ?????????????????????????????????????????????????? | | ?????????????????????????????????????????????????? | | ?????????????????????????????????????????????????? | | ?????????????????????????????????????????????????? | | ?????????????????????????????????????????????????? | | ?????????????????????????????????????????????????? | | | | | | | | | +----------------------------------------------------+ Best States ------------- Heat Dissipation 45 Energy Generation 14 Energy Capacity 160 Matter Stores 300 Matter Capacity 300 Sight Range 16 Terrain Scan Density 10 Evasion (%) 62 Item Schematics ----------------- None Robot Schematics ------------------ None Fabricated ------------ Nothing Repaired ---------- Nothing Studied --------- None Alien Tech Used ----------------- None Achievements -------------- None Challenges ------------ None Game ------ Seed LaunchInsulatedNanosword Manual? 0 Play Time 00:17:44 Cumulative 472.5 hours Start 2025.11.05 @ 17:51:39 End 2025.11.05 @ 18:06:55 Sessions 1 Manual Loads 0 Difficulty Rogue Special Mode None Game No. 598 Rogue 598 Adventurer 0 Explorer 0 Win Type - Total 14 Types 6/0/2/2/1/0/2/1/0/0 Lore% 90 Gallery% 85 Achievement% 63 Wizard Run 0 Options --------- Layout 2 ASCII 0 Keyboard 0 Movement Mouse Keybinds 0 Fullscreen 1 Font 24/Smallcaps Map View 50x49 Zoom Use 0% Tactical HUD 1 Map Filters NONE Filters NONE Steam 1 RUN: 566d2256-9ff9-4c9e-a483-475b7538e470